[Event "Late Titled Tuesday Blitz February 8 2022"]
[White "Bernat, David"]
[Black "Kanyamarala, Trisha"]
[WhiteFideId "2099225"]
[BlackFideId "45004722"]
[WhiteElo "2268"]
[BlackElo "2002"]
[Result "1-0"]
[Round "03"]
[TimeControl "180+1"]
[Date "2022.02.09"]
[WhiteClock "0:00:14"]
[BlackClock "0:00:06"]

1. c4 {[%clk 0:03:00]}  e6 {[%clk 0:02:52]} 2. e4 {[%clk 0:03:00]}  d5 {[%clk 0:02:51]} 3. cxd5 {[%clk 0:03:01]}  exd5 {[%clk 0:02:51]} 4. exd5 {[%clk 0:03:02]}  Nf6 {[%clk 0:02:52]} 5. Bb5+ {[%clk 0:03:00]}  Bd7 {[%clk 0:02:49]} 6. Bc4 {[%clk 0:03:00]}  Bd6 {[%clk 0:02:47]} 7. Qe2+ {[%clk 0:03:00]}  Qe7 {[%clk 0:02:46]} 8. Qxe7+ {[%clk 0:03:00]}  Bxe7 {[%clk 0:02:45]} 9. Nf3 {[%clk 0:03:00]}  O-O {[%clk 0:02:42]} 10. O-O {[%clk 0:03:00]}  Bd6 {[%clk 0:02:38]} 11. Nc3 {[%clk 0:03:00]}  Bg4 {[%clk 0:02:38]} 12. Nd4 {[%clk 0:02:53]}  a6 {[%clk 0:02:37]} 13. h3 {[%clk 0:02:51]}  Bd7 {[%clk 0:02:32]} 14. a4 {[%clk 0:02:49]}  Be5 {[%clk 0:02:20]} 15. Nf3 {[%clk 0:02:48]}  Bd6 {[%clk 0:02:19]} 16. d4 {[%clk 0:02:48]}  Bf5 {[%clk 0:02:14]} 17. Ne5 {[%clk 0:02:44]}  Nbd7 {[%clk 0:02:12]} 18. g4 {[%clk 0:02:41]}  Bxe5 {[%clk 0:02:08]} 19. dxe5 {[%clk 0:02:25]}  Nxe5 {[%clk 0:02:08]} 20. Be2 {[%clk 0:02:23]}  Bd3 {[%clk 0:02:01]} 21. Bg5 {[%clk 0:02:16]}  Bxe2 {[%clk 0:01:59]} 22. Bxf6 {[%clk 0:02:15]}  Bxf1 {[%clk 0:01:31]} 23. Bxe5 {[%clk 0:02:14]}  Bc4 {[%clk 0:01:24]} 24. Bxc7 {[%clk 0:02:12]}  Rac8 {[%clk 0:01:18]} 25. Bb6 {[%clk 0:01:57]}  f6 {[%clk 0:01:08]} 26. Rd1 {[%clk 0:01:53]}  Rf7 {[%clk 0:01:04]} 27. d6 {[%clk 0:01:31]}  Rd7 {[%clk 0:00:59]} 28. a5 {[%clk 0:01:19]}  Re8 {[%clk 0:00:49]} 29. Rd4 {[%clk 0:01:18]}  Bb5 {[%clk 0:00:40]} 30. Bc7 {[%clk 0:00:52]}  Bc6 {[%clk 0:00:35]} 31. Rc4 {[%clk 0:00:33]}  Re1+ {[%clk 0:00:31]} 32. Kh2 {[%clk 0:00:32]}  Rh1+ {[%clk 0:00:28]} 33. Kg3 {[%clk 0:00:31]}  g5 {[%clk 0:00:22]} 34. f4 {[%clk 0:00:27]}  Kf7 {[%clk 0:00:12]} 35. fxg5 {[%clk 0:00:24]}  fxg5 {[%clk 0:00:12]} 36. Rxc6 {[%clk 0:00:24]}  bxc6 {[%clk 0:00:11]} 37. Ne4 {[%clk 0:00:25]}  h6 {[%clk 0:00:07]} 38. Nc5 {[%clk 0:00:24]}  Ke8 {[%clk 0:00:07]} 39. Nxa6 {[%clk 0:00:20]}  Rg1+ {[%clk 0:00:08]} 40. Kf2 {[%clk 0:00:19]}  Rb1 {[%clk 0:00:07]} 41. b4 {[%clk 0:00:18]}  Rxc7 {[%clk 0:00:07]} 42. dxc7 {[%clk 0:00:17]}  Kd7 {[%clk 0:00:07]} 43. Ke3 {[%clk 0:00:17]}  Kc8 {[%clk 0:00:06]} 44. Kd4 {[%clk 0:00:16]}  Rc1 {[%clk 0:00:06]} 45. Ke5 {[%clk 0:00:12]}  Kb7 {[%clk 0:00:06]} 46. Kd6 {[%clk 0:00:11]}  Rd1+ {[%clk 0:00:06]} 47. Kc5 {[%clk 0:00:12]}  Rd5+ {[%clk 0:00:05]} 48. Kc4 {[%clk 0:00:11]}  Rd7 {[%clk 0:00:04]} 49. Nc5+ {[%clk 0:00:11]}  Kxc7 {[%clk 0:00:04]} 50. Nxd7 {[%clk 0:00:12]}  Kxd7 {[%clk 0:00:05]} 51. a6 {[%clk 0:00:12]}  Kc7 {[%clk 0:00:05]} 52. Kc5 {[%clk 0:00:13]}  Kb8 {[%clk 0:00:04]} 53. Kxc6 {[%clk 0:00:13]}  h5 {[%clk 0:00:05]} 54. gxh5 {[%clk 0:00:13]}  g4 {[%clk 0:00:05]} 55. hxg4 {[%clk 0:00:14]}  Ka7 {[%clk 0:00:05]} 56. Kb5 {[%clk 0:00:14]}  Ka8 {[%clk 0:00:05]} 57. Kb6 {[%clk 0:00:13]}  Kb8 {[%clk 0:00:06]} 58. h6 {[%clk 0:00:14]}  Ka8 {[%clk 0:00:06]} 59. h7 {[%clk 0:00:14]} 1-0


[Site "https://www.chess.com"]

[Event "Late Titled Tuesday Blitz February 8 2022"]
[White "Beulen, Marcel"]
[Black "Al Hosani, Omran"]
[WhiteFideId "1001450"]
[BlackFideId "9308733"]
[WhiteElo "2355"]
[BlackElo "2246"]
[Result "0-1"]
[Round "03"]
[TimeControl "180+1"]
[Date "2022.02.09"]
[WhiteClock "0:01:51"]
[BlackClock "0:02:17"]

1. e4 {[%clk 0:02:56]}  c5 {[%clk 0:02:57]} 2. Nf3 {[%clk 0:02:56]}  Nc6 {[%clk 0:02:57]} 3. Bb5 {[%clk 0:02:56]}  g6 {[%clk 0:02:54]} 4. O-O {[%clk 0:02:54]}  Bg7 {[%clk 0:02:54]} 5. c3 {[%clk 0:02:54]}  e5 {[%clk 0:02:48]} 6. a3 {[%clk 0:02:41]}  Nge7 {[%clk 0:02:47]} 7. b4 {[%clk 0:02:41]}  d6 {[%clk 0:02:47]} 8. d3 {[%clk 0:02:41]}  O-O {[%clk 0:02:47]} 9. Nbd2 {[%clk 0:02:40]}  h6 {[%clk 0:02:46]} 10. Bb2 {[%clk 0:02:36]}  Be6 {[%clk 0:02:45]} 11. d4 {[%clk 0:02:35]}  exd4 {[%clk 0:02:45]} 12. cxd4 {[%clk 0:02:35]}  cxd4 {[%clk 0:02:44]} 13. Nb3 {[%clk 0:02:35]}  Bg4 {[%clk 0:02:39]} 14. h3 {[%clk 0:02:32]}  Bxf3 {[%clk 0:02:38]} 15. Qxf3 {[%clk 0:02:33]}  a6 {[%clk 0:02:37]} 16. Bc4 {[%clk 0:02:20]}  Ne5 {[%clk 0:02:34]} 17. Qe2 {[%clk 0:02:20]}  Rc8 {[%clk 0:02:20]} 18. Rac1 {[%clk 0:01:52]}  Rxc4 {[%clk 0:02:17]} 19. Rxc4 {[%clk 0:01:51]}  d3 {[%clk 0:02:17]} 0-1


[Site "https://www.chess.com"]

[Event "Late Titled Tuesday Blitz February 8 2022"]
[White "Burke, Paul"]
[Black "Terletsky, Oleg"]
[WhiteFideId "2605767"]
[BlackFideId "14116774"]
[WhiteElo "1824"]
[BlackElo "2050"]
[Result "0-1"]
[Round "03"]
[TimeControl "180+1"]
[Date "2022.02.09"]
[WhiteClock "0:00:31"]
[BlackClock "0:00:55"]

1. e4 {[%clk 0:03:00]}  e5 {[%clk 0:02:59]} 2. Nf3 {[%clk 0:03:00]}  Nc6 {[%clk 0:02:59]} 3. Bc4 {[%clk 0:03:00]}  Nf6 {[%clk 0:02:58]} 4. d4 {[%clk 0:02:59]}  exd4 {[%clk 0:02:56]} 5. O-O {[%clk 0:02:59]}  Nxe4 {[%clk 0:02:56]} 6. Re1 {[%clk 0:02:50]}  d5 {[%clk 0:02:56]} 7. Bxd5 {[%clk 0:02:50]}  Qxd5 {[%clk 0:02:56]} 8. Nc3 {[%clk 0:02:50]}  Qa5 {[%clk 0:02:57]} 9. Nxe4 {[%clk 0:02:50]}  Be6 {[%clk 0:02:58]} 10. Neg5 {[%clk 0:02:48]}  O-O-O {[%clk 0:02:57]} 11. Nxe6 {[%clk 0:02:48]}  fxe6 {[%clk 0:02:58]} 12. Bg5 {[%clk 0:02:46]}  Rd5 {[%clk 0:02:45]} 13. Bd2 {[%clk 0:02:43]}  Qb6 {[%clk 0:02:40]} 14. Qe2 {[%clk 0:02:32]}  e5 {[%clk 0:02:37]} 15. Qc4 {[%clk 0:02:29]}  Qc5 {[%clk 0:02:33]} 16. Qxc5 {[%clk 0:02:13]}  Bxc5 {[%clk 0:02:32]} 17. a3 {[%clk 0:02:06]}  a5 {[%clk 0:02:31]} 18. b4 {[%clk 0:02:04]}  Bd6 {[%clk 0:02:24]} 19. b5 {[%clk 0:02:01]}  Rxb5 {[%clk 0:02:21]} 20. a4 {[%clk 0:01:55]}  Rc5 {[%clk 0:02:20]} 21. Ng5 {[%clk 0:01:31]}  Rxc2 {[%clk 0:02:18]} 22. Nf7 {[%clk 0:01:29]}  Rf8 {[%clk 0:02:13]} 23. Nxd6+ {[%clk 0:01:28]}  cxd6 {[%clk 0:02:14]} 24. Red1 {[%clk 0:01:21]}  Kc7 {[%clk 0:02:00]} 25. Rac1 {[%clk 0:01:15]}  Rxc1 {[%clk 0:01:58]} 26. Rxc1 {[%clk 0:01:15]}  Kd7 {[%clk 0:01:57]} 27. Rb1 {[%clk 0:01:15]}  Rb8 {[%clk 0:01:55]} 28. Rb5 {[%clk 0:01:14]}  b6 {[%clk 0:01:54]} 29. Kf1 {[%clk 0:01:08]}  Na7 {[%clk 0:01:39]} 30. Rb1 {[%clk 0:01:02]}  Kc6 {[%clk 0:01:38]} 31. Rc1+ {[%clk 0:00:59]}  Kd7 {[%clk 0:01:34]} 32. Rb1 {[%clk 0:00:59]}  Rb7 {[%clk 0:01:35]} 33. Bxa5 {[%clk 0:00:57]}  Kc6 {[%clk 0:01:32]} 34. Bd2 {[%clk 0:00:55]}  Kd5 {[%clk 0:01:31]} 35. f3 {[%clk 0:00:54]}  b5 {[%clk 0:01:29]} 36. a5 {[%clk 0:00:52]}  Kc4 {[%clk 0:01:10]} 37. Ke2 {[%clk 0:00:50]}  b4 {[%clk 0:01:09]} 38. Rc1+ {[%clk 0:00:40]}  Kd5 {[%clk 0:01:03]} 39. Rb1 {[%clk 0:00:39]}  Nc6 {[%clk 0:01:02]} 40. a6 {[%clk 0:00:37]}  Ra7 {[%clk 0:01:02]} 41. Bxb4 {[%clk 0:00:35]}  Nxb4 {[%clk 0:01:01]} 42. Rxb4 {[%clk 0:00:34]}  Rxa6 {[%clk 0:01:01]} 43. Rb7 {[%clk 0:00:33]}  Ra2+ {[%clk 0:01:00]} 44. Kf1 {[%clk 0:00:33]}  d3 {[%clk 0:00:56]} 45. Rb3 {[%clk 0:00:32]}  Kc4 {[%clk 0:00:55]} 46. Rb6 {[%clk 0:00:31]}  d5 {[%clk 0:00:55]} 0-1


[Site "https://www.chess.com"]

[Event "Late Titled Tuesday Blitz February 8 2022"]
[White "Costachi, Mihnea"]
[Black "Risteski, Emil"]
[WhiteFideId "1217518"]
[BlackFideId "15005267"]
[WhiteElo "2824"]
[BlackElo "2584"]
[Result "1-0"]
[Round "03"]
[TimeControl "180+1"]
[Date "2022.02.09"]
[WhiteClock "0:01:54"]
[BlackClock "0:01:27"]

1. e4 {[%clk 0:03:00]}  d6 {[%clk 0:03:00]} 2. d4 {[%clk 0:03:00]}  Nf6 {[%clk 0:03:01]} 3. Nc3 {[%clk 0:03:00]}  e5 {[%clk 0:03:01]} 4. Nf3 {[%clk 0:02:59]}  Nbd7 {[%clk 0:03:01]} 5. Bc4 {[%clk 0:03:00]}  Be7 {[%clk 0:03:02]} 6. O-O {[%clk 0:02:55]}  O-O {[%clk 0:03:02]} 7. h3 {[%clk 0:02:56]}  c6 {[%clk 0:03:02]} 8. a4 {[%clk 0:02:55]}  a5 {[%clk 0:03:02]} 9. Re1 {[%clk 0:02:54]}  Nb6 {[%clk 0:03:02]} 10. Bb3 {[%clk 0:02:52]}  Nfd7 {[%clk 0:03:03]} 11. Be3 {[%clk 0:02:49]}  exd4 {[%clk 0:03:03]} 12. Nxd4 {[%clk 0:02:49]}  Nc5 {[%clk 0:03:03]} 13. Nf5 {[%clk 0:02:43]}  Bxf5 {[%clk 0:03:00]} 14. exf5 {[%clk 0:02:43]}  d5 {[%clk 0:02:50]} 15. f6 {[%clk 0:02:42]}  gxf6 {[%clk 0:02:49]} 16. Bh6 {[%clk 0:02:35]}  Kh8 {[%clk 0:02:46]} 17. Bxf8 {[%clk 0:02:29]}  Bxf8 {[%clk 0:02:47]} 18. Qh5 {[%clk 0:02:27]}  Kg8 {[%clk 0:02:38]} 19. Rad1 {[%clk 0:02:26]}  Bd6 {[%clk 0:02:29]} 20. Rd4 {[%clk 0:02:23]}  Kh8 {[%clk 0:01:49]} 21. Qxf7 {[%clk 0:02:18]}  Qf8 {[%clk 0:01:48]} 22. Qh5 {[%clk 0:02:16]}  Be5 {[%clk 0:01:31]} 23. Rh4 {[%clk 0:01:59]}  Qg7 {[%clk 0:01:29]} 24. Rg4 {[%clk 0:01:57]}  Qf8 {[%clk 0:01:27]} 25. Rxe5 {[%clk 0:01:54]} 1-0


[Site "https://www.chess.com"]

[Event "Late Titled Tuesday Blitz February 8 2022"]
[White "Daianu, Cristian-Clement"]
[Black "Proleiko, Julian"]
[WhiteFideId "1208926"]
[BlackFideId "30900255"]
[WhiteElo "2159"]
[BlackElo "2116"]
[Result "0-1"]
[Round "03"]
[TimeControl "180+1"]
[Date "2022.02.09"]
[WhiteClock "0:00:13"]
[BlackClock "0:00:50"]

1. e4 {[%clk 0:03:00]}  e5 {[%clk 0:02:59]} 2. Nf3 {[%clk 0:03:00]}  Nc6 {[%clk 0:02:52]} 3. Bc4 {[%clk 0:03:00]}  Nf6 {[%clk 0:02:45]} 4. O-O {[%clk 0:03:00]}  Nxe4 {[%clk 0:02:43]} 5. Nc3 {[%clk 0:03:00]}  Nd6 {[%clk 0:02:42]} 6. Bb3 {[%clk 0:02:55]}  Be7 {[%clk 0:02:41]} 7. Re1 {[%clk 0:02:56]}  O-O {[%clk 0:02:38]} 8. Nxe5 {[%clk 0:02:56]}  Nxe5 {[%clk 0:02:38]} 9. Rxe5 {[%clk 0:02:56]}  Bf6 {[%clk 0:02:39]} 10. Re1 {[%clk 0:02:56]}  c6 {[%clk 0:02:39]} 11. d4 {[%clk 0:02:55]}  Nf5 {[%clk 0:02:39]} 12. d5 {[%clk 0:02:55]}  Nd4 {[%clk 0:02:39]} 13. Ne4 {[%clk 0:02:45]}  Nxb3 {[%clk 0:02:29]} 14. axb3 {[%clk 0:02:46]}  Be5 {[%clk 0:02:27]} 15. Bg5 {[%clk 0:02:36]}  f6 {[%clk 0:02:27]} 16. Bh4 {[%clk 0:02:35]}  Qb6 {[%clk 0:02:20]} 17. Bg3 {[%clk 0:02:13]}  Bxg3 {[%clk 0:02:13]} 18. hxg3 {[%clk 0:02:14]}  cxd5 {[%clk 0:02:11]} 19. Qxd5+ {[%clk 0:02:08]}  Qe6 {[%clk 0:02:11]} 20. Nc3 {[%clk 0:02:06]}  Qxd5 {[%clk 0:02:01]} 21. Nxd5 {[%clk 0:02:07]}  b6 {[%clk 0:01:59]} 22. Nxb6 {[%clk 0:01:59]}  Rb8 {[%clk 0:01:59]} 23. Nc4 {[%clk 0:01:56]}  d5 {[%clk 0:01:55]} 24. Ne3 {[%clk 0:01:47]}  d4 {[%clk 0:01:50]} 25. Nc4 {[%clk 0:01:47]}  Bf5 {[%clk 0:01:49]} 26. Rxa7 {[%clk 0:01:43]}  Bxc2 {[%clk 0:01:49]} 27. Ree7 {[%clk 0:01:43]}  Rfd8 {[%clk 0:01:36]} 28. Rxg7+ {[%clk 0:01:34]}  Kh8 {[%clk 0:01:36]} 29. Nd2 {[%clk 0:01:32]}  Bg6 {[%clk 0:01:34]} 30. f4 {[%clk 0:01:28]}  d3 {[%clk 0:01:32]} 31. g4 {[%clk 0:01:28]}  f5 {[%clk 0:01:32]} 32. gxf5 {[%clk 0:01:25]}  Bxf5 {[%clk 0:01:32]} 33. g4 {[%clk 0:01:26]}  Rg8 {[%clk 0:01:31]} 34. Rxg8+ {[%clk 0:01:21]}  Rxg8 {[%clk 0:01:32]} 35. g5 {[%clk 0:01:19]}  Re8 {[%clk 0:01:29]} 36. Rf7 {[%clk 0:01:08]}  Re1+ {[%clk 0:01:28]} 37. Kf2 {[%clk 0:01:04]}  Re2+ {[%clk 0:01:29]} 38. Kf3 {[%clk 0:00:59]}  Bg6 {[%clk 0:01:29]} 39. Rf6 {[%clk 0:00:53]}  Rxd2 {[%clk 0:01:29]} 40. f5 {[%clk 0:00:54]}  Bh5+ {[%clk 0:01:28]} 41. Ke3 {[%clk 0:00:54]}  Rd1 {[%clk 0:01:28]} 42. Rd6 {[%clk 0:00:51]}  Re1+ {[%clk 0:01:24]} 43. Kd2 {[%clk 0:00:47]}  Rd1+ {[%clk 0:01:24]} 44. Kc3 {[%clk 0:00:46]}  Be2 {[%clk 0:01:19]} 45. f6 {[%clk 0:00:43]}  Kg8 {[%clk 0:01:18]} 46. Rd8+ {[%clk 0:00:41]}  Kf7 {[%clk 0:01:18]} 47. Rd7+ {[%clk 0:00:41]}  Ke6 {[%clk 0:01:17]} 48. Re7+ {[%clk 0:00:41]}  Kd6 {[%clk 0:01:16]} 49. Re8 {[%clk 0:00:35]}  Rc1+ {[%clk 0:01:16]} 50. Kd2 {[%clk 0:00:31]}  Rc2+ {[%clk 0:01:16]} 51. Ke1 {[%clk 0:00:25]}  Bh5 {[%clk 0:01:15]} 52. Rd8+ {[%clk 0:00:24]}  Ke5 {[%clk 0:01:12]} 53. Rxd3 {[%clk 0:00:25]}  Rxb2 {[%clk 0:01:10]} 54. Re3+ {[%clk 0:00:23]}  Kf4 {[%clk 0:01:03]} 55. Re7 {[%clk 0:00:24]}  Rxb3 {[%clk 0:00:54]} 56. Rxh7 {[%clk 0:00:17]}  Kxg5 {[%clk 0:00:54]} 57. f7 {[%clk 0:00:14]}  Rf3 {[%clk 0:00:53]} 58. Kd2 {[%clk 0:00:12]}  Bxf7 {[%clk 0:00:52]} 59. Rg7+ {[%clk 0:00:12]}  Bg6 {[%clk 0:00:53]} 60. Ke2 {[%clk 0:00:12]}  Rb3 {[%clk 0:00:51]} 61. Rd7 {[%clk 0:00:11]}  Kf4 {[%clk 0:00:50]} 62. Rd4+ {[%clk 0:00:11]}  Be4 {[%clk 0:00:50]} 63. Rd8 {[%clk 0:00:12]}  Rb2+ {[%clk 0:00:50]} 64. Kd1 {[%clk 0:00:12]}  Ke3 {[%clk 0:00:50]} 65. Kc1 {[%clk 0:00:13]}  Rb1# {[%clk 0:00:50]} 0-1


[Site "https://www.chess.com"]

[Event "Late Titled Tuesday Blitz February 8 2022"]
[White "Degardin, Sylvain"]
[Black "Kostiukov, Alexandr"]
[WhiteFideId "20623070"]
[BlackFideId "14108100"]
[WhiteElo "2156"]
[BlackElo "2202"]
[Result "0-1"]
[Round "03"]
[TimeControl "180+1"]
[Date "2022.02.09"]
[WhiteClock "0:00:06"]
[BlackClock "0:00:08"]

1. e4 {[%clk 0:03:00]}  c5 {[%clk 0:02:59]} 2. Nf3 {[%clk 0:03:00]}  g6 {[%clk 0:03:00]} 3. h4 {[%clk 0:02:55]}  h5 {[%clk 0:03:00]} 4. Bc4 {[%clk 0:02:52]}  Bg7 {[%clk 0:03:00]} 5. c3 {[%clk 0:02:48]}  Nc6 {[%clk 0:03:00]} 6. d4 {[%clk 0:02:47]}  cxd4 {[%clk 0:03:00]} 7. cxd4 {[%clk 0:02:48]}  Nf6 {[%clk 0:03:01]} 8. e5 {[%clk 0:02:47]}  Ng4 {[%clk 0:02:58]} 9. Ng5 {[%clk 0:02:35]}  O-O {[%clk 0:02:54]} 10. f3 {[%clk 0:02:18]}  Nh6 {[%clk 0:02:36]} 11. g4 {[%clk 0:02:12]}  d5 {[%clk 0:02:35]} 12. Be2 {[%clk 0:01:58]}  hxg4 {[%clk 0:02:24]} 13. fxg4 {[%clk 0:01:59]}  Qb6 {[%clk 0:02:23]} 14. Nc3 {[%clk 0:01:48]}  Qxd4 {[%clk 0:02:16]} 15. Nxd5 {[%clk 0:01:41]}  Qxd1+ {[%clk 0:02:14]} 16. Bxd1 {[%clk 0:01:38]}  Bxg4 {[%clk 0:01:59]} 17. Bb3 {[%clk 0:01:32]}  Nxe5 {[%clk 0:01:48]} 18. Nxe7+ {[%clk 0:01:25]}  Kh8 {[%clk 0:01:42]} 19. O-O {[%clk 0:01:25]}  Rae8 {[%clk 0:01:28]} 20. Nd5 {[%clk 0:01:18]}  Nd3 {[%clk 0:01:26]} 21. Bd2 {[%clk 0:01:01]}  Bxb2 {[%clk 0:01:00]} 22. Rab1 {[%clk 0:00:59]}  Be2 {[%clk 0:00:58]} 23. Nf6 {[%clk 0:00:27]}  Bd4+ {[%clk 0:00:47]} 24. Kh2 {[%clk 0:00:19]}  Bxf6 {[%clk 0:00:24]} 25. Rxf6 {[%clk 0:00:11]}  Ng4+ {[%clk 0:00:24]} 26. Kg3 {[%clk 0:00:11]}  Nxf6 {[%clk 0:00:25]} 27. Bc3 {[%clk 0:00:12]}  Ne5 {[%clk 0:00:21]} 28. Re1 {[%clk 0:00:12]}  Nh5+ {[%clk 0:00:19]} 29. Kf2 {[%clk 0:00:07]}  Kg8 {[%clk 0:00:11]} 30. Rxe2 {[%clk 0:00:07]}  Ng4+ {[%clk 0:00:10]} 31. Kf3 {[%clk 0:00:07]}  Rxe2 {[%clk 0:00:08]} 32. Kxe2 {[%clk 0:00:08]}  Re8+ {[%clk 0:00:05]} 33. Kf3 {[%clk 0:00:08]}  Re7 {[%clk 0:00:03]} 34. Kxg4 {[%clk 0:00:07]}  Kf8 {[%clk 0:00:03]} 35. Bb4 {[%clk 0:00:07]}  Ke8 {[%clk 0:00:03]} 36. Bxe7 {[%clk 0:00:06]}  Kxe7 {[%clk 0:00:04]} 37. Nxf7 {[%clk 0:00:06]}  Kf6 {[%clk 0:00:04]} 38. Ng5 {[%clk 0:00:06]}  Ng7 {[%clk 0:00:04]} 39. Nf3 {[%clk 0:00:06]}  Nf5 {[%clk 0:00:04]} 40. Kf4 {[%clk 0:00:04]}  Ne3 {[%clk 0:00:05]} 41. Kxe3 {[%clk 0:00:04]}  Kf5 {[%clk 0:00:06]} 42. Bc2+ {[%clk 0:00:03]}  Kf6 {[%clk 0:00:06]} 43. Ng5 {[%clk 0:00:03]}  a5 {[%clk 0:00:07]} 44. Kf4 {[%clk 0:00:04]}  b5 {[%clk 0:00:07]} 45. Bd3 {[%clk 0:00:04]}  b4 {[%clk 0:00:08]} 46. Bc2 {[%clk 0:00:04]}  Ke7 {[%clk 0:00:08]} 47. Bb3 {[%clk 0:00:05]}  Kd6 {[%clk 0:00:09]} 48. Ke4 {[%clk 0:00:05]}  Kc5 {[%clk 0:00:10]} 49. Kd3 {[%clk 0:00:06]}  Kb5 {[%clk 0:00:11]} 50. Kd4 {[%clk 0:00:06]}  a4 {[%clk 0:00:11]} 51. Bc4+ {[%clk 0:00:06]}  Kc6 {[%clk 0:00:11]} 52. Bd3 {[%clk 0:00:06]}  Kb6 {[%clk 0:00:09]} 53. Bxg6 {[%clk 0:00:06]}  b3 {[%clk 0:00:08]} 0-1


[Site "https://www.chess.com"]

[Event "Late Titled Tuesday Blitz February 8 2022"]
[White "Della Morte, German"]
[Black "Mekhitarian, Krikor Sevag"]
[WhiteFideId "113522"]
[BlackFideId "2107660"]
[WhiteElo "2363"]
[BlackElo "2598"]
[Result "0-1"]
[Round "03"]
[TimeControl "180+1"]
[Date "2022.02.08"]
[WhiteClock "0:00:02"]
[BlackClock "0:00:28"]

1. e4 {[%clk 0:03:00]}  c5 {[%clk 0:02:57]} 2. Nf3 {[%clk 0:03:01]}  g6 {[%clk 0:02:57]} 3. d4 {[%clk 0:03:01]}  cxd4 {[%clk 0:02:57]} 4. Nxd4 {[%clk 0:03:02]}  Nc6 {[%clk 0:02:57]} 5. Nc3 {[%clk 0:03:02]}  Bg7 {[%clk 0:02:56]} 6. Be3 {[%clk 0:03:02]}  Nf6 {[%clk 0:02:57]} 7. Bc4 {[%clk 0:03:02]}  O-O {[%clk 0:02:57]} 8. Bb3 {[%clk 0:03:02]}  Re8 {[%clk 0:02:58]} 9. O-O {[%clk 0:03:02]}  d6 {[%clk 0:02:57]} 10. h3 {[%clk 0:03:01]}  Na5 {[%clk 0:02:55]} 11. Re1 {[%clk 0:03:01]}  a6 {[%clk 0:02:53]} 12. Bg5 {[%clk 0:03:00]}  b5 {[%clk 0:02:47]} 13. Nd5 {[%clk 0:02:48]}  Nxb3 {[%clk 0:02:39]} 14. axb3 {[%clk 0:02:42]}  Bb7 {[%clk 0:02:21]} 15. c4 {[%clk 0:02:35]}  h6 {[%clk 0:01:53]} 16. Bh4 {[%clk 0:02:26]}  Nxd5 {[%clk 0:01:48]} 17. exd5 {[%clk 0:02:19]}  Qb6 {[%clk 0:01:49]} 18. Nf3 {[%clk 0:01:54]}  g5 {[%clk 0:01:42]} 19. Bxg5 {[%clk 0:01:43]}  hxg5 {[%clk 0:01:40]} 20. Nxg5 {[%clk 0:01:44]}  Qd4 {[%clk 0:01:35]} 21. Re4 {[%clk 0:01:05]}  Qxd1+ {[%clk 0:01:32]} 22. Rxd1 {[%clk 0:00:57]}  Bc8 {[%clk 0:01:19]} 23. Re2 {[%clk 0:00:33]}  Bd7 {[%clk 0:01:13]} 24. g4 {[%clk 0:00:18]}  a5 {[%clk 0:01:12]} 25. Ne4 {[%clk 0:00:16]}  Rec8 {[%clk 0:01:10]} 26. Nd2 {[%clk 0:00:12]}  a4 {[%clk 0:01:09]} 27. Rxe7 {[%clk 0:00:12]}  Be8 {[%clk 0:01:06]} 28. bxa4 {[%clk 0:00:10]}  bxa4 {[%clk 0:00:56]} 29. Rb1 {[%clk 0:00:06]}  Rcb8 {[%clk 0:00:53]} 30. Ne4 {[%clk 0:00:03]}  Rxb2 {[%clk 0:00:44]} 31. Re1 {[%clk 0:00:01]}  a3 {[%clk 0:00:28]} 32. Nxd6 {[%clk 0:00:02]}  Ba4 {[%clk 0:00:29]} 33. Rc7 {[%clk 0:00:02]}  a2 {[%clk 0:00:28]} 34. c5 {[%clk 0:00:02]}  Rb1 {[%clk 0:00:28]} 0-1


[Site "https://www.chess.com"]

[Event "Late Titled Tuesday Blitz February 8 2022"]
[White "Dobre, Claudiu-Cristian"]
[Black "Seliverstov, Vladimir"]
[WhiteFideId "1211854"]
[BlackFideId "4192036"]
[WhiteElo "2207"]
[BlackElo "2489"]
[Result "0-1"]
[Round "03"]
[TimeControl "180+1"]
[Date "2022.02.08"]
[WhiteClock "0:00:02"]
[BlackClock "0:00:13"]

1. c4 {[%clk 0:03:00]}  b6 {[%clk 0:02:59]} 2. Nf3 {[%clk 0:02:59]}  Bb7 {[%clk 0:02:59]} 3. g3 {[%clk 0:03:00]}  e5 {[%clk 0:02:58]} 4. d3 {[%clk 0:02:56]}  Bxf3 {[%clk 0:02:56]} 5. exf3 {[%clk 0:02:55]}  Bb4+ {[%clk 0:02:56]} 6. Nc3 {[%clk 0:02:55]}  Bxc3+ {[%clk 0:02:54]} 7. bxc3 {[%clk 0:02:54]}  Nc6 {[%clk 0:02:54]} 8. Bg2 {[%clk 0:02:54]}  Nge7 {[%clk 0:02:53]} 9. f4 {[%clk 0:02:51]}  O-O {[%clk 0:02:45]} 10. O-O {[%clk 0:02:49]}  d6 {[%clk 0:02:40]} 11. fxe5 {[%clk 0:02:19]}  dxe5 {[%clk 0:02:41]} 12. d4 {[%clk 0:02:19]}  Rb8 {[%clk 0:02:36]} 13. Ba3 {[%clk 0:02:12]}  Re8 {[%clk 0:02:34]} 14. Qa4 {[%clk 0:02:08]}  Na5 {[%clk 0:02:19]} 15. Rad1 {[%clk 0:01:59]}  exd4 {[%clk 0:02:17]} 16. cxd4 {[%clk 0:01:58]}  Nf5 {[%clk 0:02:14]} 17. c5 {[%clk 0:01:51]}  Qf6 {[%clk 0:02:12]} 18. d5 {[%clk 0:01:47]}  Nb7 {[%clk 0:02:04]} 19. Qxa7 {[%clk 0:01:27]}  bxc5 {[%clk 0:01:55]} 20. Bxc5 {[%clk 0:01:24]}  Nxc5 {[%clk 0:01:53]} 21. Qxc5 {[%clk 0:01:23]}  Qd6 {[%clk 0:01:53]} 22. Rc1 {[%clk 0:01:18]}  Re7 {[%clk 0:01:49]} 23. Bh3 {[%clk 0:01:12]}  Qxc5 {[%clk 0:01:48]} 24. Rxc5 {[%clk 0:01:11]}  Nd6 {[%clk 0:01:49]} 25. Rfc1 {[%clk 0:01:10]}  Rb7 {[%clk 0:01:50]} 26. a4 {[%clk 0:00:55]}  g6 {[%clk 0:01:49]} 27. a5 {[%clk 0:00:55]}  Ra7 {[%clk 0:01:48]} 28. Bf1 {[%clk 0:00:44]}  Kf8 {[%clk 0:01:37]} 29. a6 {[%clk 0:00:44]}  Ke8 {[%clk 0:01:38]} 30. Rb1 {[%clk 0:00:43]}  Kd7 {[%clk 0:01:36]} 31. Rb8 {[%clk 0:00:40]}  Re1 {[%clk 0:01:32]} 32. Kg2 {[%clk 0:00:41]}  Rd1 {[%clk 0:01:29]} 33. Be2 {[%clk 0:00:31]}  Rd2 {[%clk 0:01:28]} 34. Bg4+ {[%clk 0:00:27]}  f5 {[%clk 0:01:27]} 35. Bf3 {[%clk 0:00:17]}  Nc8 {[%clk 0:00:59]} 36. d6 {[%clk 0:00:15]}  Nxd6 {[%clk 0:00:50]} 37. Bc6+ {[%clk 0:00:14]}  Ke6 {[%clk 0:00:47]} 38. Bb7 {[%clk 0:00:13]}  Kd7 {[%clk 0:00:30]} 39. Re5 {[%clk 0:00:08]}  Nxb7 {[%clk 0:00:25]} 40. axb7 {[%clk 0:00:05]}  Rb2 {[%clk 0:00:24]} 41. Ree8 {[%clk 0:00:04]}  Rbxb7 {[%clk 0:00:21]} 42. Rxb7 {[%clk 0:00:04]}  Rxb7 {[%clk 0:00:21]} 43. Rh8 {[%clk 0:00:04]}  c5 {[%clk 0:00:19]} 44. Rxh7+ {[%clk 0:00:04]}  Kc6 {[%clk 0:00:20]} 45. Rh6 {[%clk 0:00:03]}  Rg7 {[%clk 0:00:19]} 46. Kf3 {[%clk 0:00:02]}  Kd5 {[%clk 0:00:20]} 47. Ke3 {[%clk 0:00:02]}  c4 {[%clk 0:00:18]} 48. Kd2 {[%clk 0:00:02]}  Kd4 {[%clk 0:00:18]} 49. Rh4+ {[%clk 0:00:02]}  Kd5 {[%clk 0:00:16]} 50. Kc3 {[%clk 0:00:03]}  Ra7 {[%clk 0:00:13]} 51. Rd4+ {[%clk 0:00:03]}  Ke5 {[%clk 0:00:12]} 52. Rxc4 {[%clk 0:00:03]}  Ra2 {[%clk 0:00:13]} 53. Rf4 {[%clk 0:00:03]}  g5 {[%clk 0:00:12]} 54. Rf3 {[%clk 0:00:03]}  Ra3+ {[%clk 0:00:12]} 55. Kd2 {[%clk 0:00:02]}  Rxf3 {[%clk 0:00:13]} 56. Ke2 {[%clk 0:00:02]}  Ra3 {[%clk 0:00:13]} 57. h4 {[%clk 0:00:02]}  gxh4 {[%clk 0:00:13]} 0-1


[Site "https://www.chess.com"]